bitfinex-derivatives/quotes_SOLF0:USTF0_20220110
["timestamp","ask_amount","ask_price","bid_price","bid_amount"]
[1641835288723,4.0,135.49,135.41,29.50979]
[1641835288924,4.0,135.49,135.41,27.66479]
[1641835289323,5.90445112,135.5,135.41,27.66479]
[1641835289524,4.0,135.49,135.41,27.66479]
[1641835290025,5.90445112,135.5,135.41,27.66479]
[1641835290224,27.66479,135.52,135.42,1.845]
[1641835290628,2.60705543,135.48,135.42,1.845]
[1641835291225,2.60705543,135.51,135.42,1.845]
[1641835291425,2.60705543,135.51,135.43,20.0]
[1641835291625,2.60705543,135.51,135.47,27.66479]
[1641835292227,2.60705543,135.53,135.47,27.66479]
[1641835293027,6.60705543,135.53,135.47,27.66479]
[1641835293227,2.60705543,135.53,135.47,27.66479]
[1641835293827,4.0,135.52,135.47,27.66479]
[1641835294027,6.60705543,135.53,135.47,27.66479]
[1641835294629,6.60705543,135.52,135.43,21.844]
[1641835295430,2.60705543,135.52,135.43,21.844]
[1641835295731,2.60705543,135.52,135.47,27.66479]
[1641835296030,15.55390282,135.5,135.47,27.66479]
[1641835296231,15.55390282,135.5,135.48,1.844]
[1641835296431,15.55390282,135.5,135.47,1.845]
[1641835296632,17.76514261,135.52,135.46,20.0]
[1641835297432,2.60705543,135.51,135.46,20.0]
[1641835297837,2.60705543,135.51,135.46,21.845]
[1641835298836,2.60705543,135.51,135.46,25.845]
[1641835299236,18.16095825,135.51,135.46,25.845]
[1641835299436,18.16095825,135.51,135.49,20.0]
[1641835299637,18.16095825,135.51,135.5,1.845]
[1641835299836,2.60705543,135.51,135.5,29.50979]
[1641835300440,15.55390282,135.53,135.5,29.50979]
[1641835300838,2.21108009,135.51,135.5,29.50979]
[1641835301239,2.21108009,135.51,135.5,27.66479]
[1641835302543,15.55390282,135.56,135.5,31.66479]
[1641835302743,15.55390282,135.56,135.52,20.0]
[1641835304046,43.21869282,135.58,135.52,20.0]
[1641835305846,27.66479,135.58,135.52,20.0]
[1641835306247,27.66479,135.58,135.55,20.0]
[1641835306646,43.21869282,135.58,135.55,20.0]
[1641835307148,43.21869282,135.58,135.53,9.21971913]
[1641835307346,43.21869282,135.58,135.53,1.844]
[1641835307549,27.66479,135.58,135.53,1.844]
[1641835308350,15.55390282,135.57,135.52,20.0]
[1641835309151,43.21869282,135.58,135.52,20.0]
[1641835309952,43.21869282,135.58,135.51,1.844]
[1641835310153,43.21869282,135.58,135.5,35.04186941]
[1641835310354,15.55390282,135.56,135.5,35.04186941]
[1641835312458,15.55390282,135.56,135.53,20.0]
[1641835312657,15.55390282,135.57,135.54,1.844]
[1641835312855,15.55390282,135.57,135.53,20.0]
[1641835313857,15.55390282,135.58,135.53,20.0]
[1641835314257,15.55390282,135.58,135.5,84.55065941]
[1641835314457,15.55390282,135.58,135.5,82.70665941]
[1641835314660,23.55190282,135.58,135.51,1.844]
[1641835314862,23.55190282,135.58,135.5,82.70665941]
[1641835315258,27.55190282,135.58,135.5,82.70665941]
[1641835315459,15.55390282,135.56,135.5,82.70665941]
[1641835316760,15.55390282,135.56,135.51,4.18133565]
[1641835317764,15.55390282,135.55,135.51,4.18133565]
[1641835317965,15.55390282,135.55,135.51,6.02533565]
[1641835318164,15.55390282,135.55,135.54,27.66479]
[1641835318365,15.55390282,135.55,135.51,6.02533565]
[1641835318564,19.55390282,135.57,135.51,4.18133565]
[1641835319566,15.55390282,135.55,135.51,4.18133565]
[1641835320265,15.55390282,135.54,135.51,4.18133565]
[1641835320465,21.45628053,135.54,135.51,4.18133565]
[1641835320667,21.45628053,135.54,135.47,20.0]
[1641835321566,15.55390282,135.52,135.48,7.378168]
[1641835321767,15.55390282,135.52,135.49,1.844]
[1641835322266,15.55390282,135.54,135.51,27.66479]
[1641835323872,4.0,135.53,135.49,1.844]
[1641835324069,4.0,135.52,135.47,20.0]
[1641835324669,74.99619679,135.54,135.47,20.0]
[1641835325068,47.33140679,135.54,135.47,29.132]
[1641835325470,15.61395517,135.51,135.47,29.132]
[1641835325669,15.61395517,135.51,135.48,4.18199375]
[1641835326370,15.61395517,135.5,135.48,4.18199375]
[1641835326571,15.61395517,135.5,135.48,6.02599375]
[1641835327373,15.61395517,135.52,135.48,6.02599375]
[1641835327573,15.61395517,135.52,135.48,4.18199375]
[1641835328179,15.61395517,135.51,135.48,4.18199375]
[1641835329581,15.61395517,135.51,135.46,55.32958]
[1641835329982,15.61395517,135.51,135.48,7.3784402]
[1641835330182,2.13945334,135.5,135.48,7.3784402]
[1641835331085,2.13945334,135.5,135.46,55.32958]
[1641835332387,2.13945334,135.5,135.46,66.32958]
[1641835333387,8.64345334,135.5,135.46,66.32958]
[1641835334188,6.504,135.5,135.47,4.18266917]
[1641835334589,24.25729643,135.5,135.47,4.18266917]
[1641835335089,17.75329643,135.5,135.47,4.18266917]
[1641835335291,15.61395517,135.49,135.47,4.18266917]
[1641835336392,2.13934126,135.5,135.47,4.18266917]
[1641835338194,2.13934126,135.5,135.46,66.32958]
[1641835338494,2.13934126,135.5,135.46,73.70910919]
[1641835338693,15.61395517,135.51,135.46,73.70910919]
[1641835338893,2.13876702,135.49,135.46,73.70910919]
[1641835340095,2.13876702,135.49,135.46,62.70910919]
[1641835342900,15.61395517,135.51,135.46,55.32958]
[1641835343301,2.13819844,135.48,135.47,6.02780985]
[1641835343506,15.61395517,135.51,135.47,6.02780985]
[1641835343901,15.61395517,135.53,135.47,6.02780985]
[1641835344402,15.61395517,135.53,135.49,27.66479]
[1641835344803,15.61395517,135.52,135.49,27.66479]
[1641835349110,15.61395517,135.52,135.47,6.0273218]
[1641835349310,4.0,135.51,135.47,4.1823218]
[1641835349512,4.0,135.48,135.45,11.04]
[1641835349709,5.9041928,135.5,135.45,11.04]
[1641835349908,4.0,135.5,135.45,11.04]
[1641835350108,15.61395517,135.49,135.45,11.04]
[1641835350510,43.27874517,135.49,135.45,11.04]
[1641835350912,47.27874517,135.49,135.45,11.04]
[1641835351711,18.22872613,135.48,135.45,11.04]
[1641835353214,18.22872613,135.48,135.46,1.845]
[1641835353418,2.61477096,135.48,135.45,11.04]
[1641835353615,2.61477096,135.48,135.45,12.885]
[1641835354114,15.61395517,135.49,135.45,12.885]
[1641835354315,15.61395517,135.49,135.45,11.04]
[1641835355115,15.61395517,135.5,135.45,18.4200738]
[1641835355315,15.61395517,135.5,135.46,1.845]
[1641835355815,15.61395517,135.52,135.46,4.44400556]
[1641835356016,15.61395517,135.52,135.46,24.44400556]
[1641835356216,15.61395517,135.52,135.46,28.44400556]
[1641835356617,15.61395517,135.52,135.47,27.66479]
[1641835356918,15.61395517,135.51,135.48,1.845]
[1641835357319,15.61395517,135.52,135.48,1.845]
[1641835357719,15.61395517,135.52,135.48,21.845]
[1641835360523,15.61395517,135.52,135.48,1.845]
[1641835360722,19.61395517,135.52,135.48,1.845]
[1641835361121,15.61395517,135.52,135.48,1.845]
[1641835361322,18.22872613,135.51,135.48,1.845]
[1641835361529,18.22872613,135.51,135.47,21.844]
[1641835362127,15.61395517,135.52,135.47,21.844]
[1641835362826,2.74974336,135.51,135.47,21.844]
[1641835363727,2.74974336,135.51,135.5,20.0]
[1641835363927,2.74974336,135.51,135.5,27.37735153]
[1641835364127,15.61395517,135.53,135.5,27.37735153]
[1641835364527,41.42896677,135.56,135.5,31.37735153]
[1641835364727,15.63993745,135.56,135.54,20.0]
[1641835365527,10.45119034,135.57,135.54,20.0]
[1641835365528,10.45119034,135.57,135.55,7.37435935]
[1641835365729,41.42896677,135.59,135.55,9.21835935]
[1641835365928,51.86781189,135.61,135.57,20.0]
[1641835366729,41.42896677,135.61,135.57,20.0]
[1641835367030,2.61013398,135.61,135.57,20.0]
[1641835367933,2.61013398,135.61,135.57,21.843]
[1641835370339,2.61013398,135.61,135.56,31.8443757]
[1641835370739,2.61013398,135.61,135.56,4.1795857]
[1641835373147,4.0,135.6,135.56,4.1795857]
[1641835373345,12.834,135.6,135.56,4.1795857]
[1641835373544,8.834,135.6,135.51,29.50779]
[1641835373744,67.848,135.59,135.51,29.50779]
[1641835374146,70.45813398,135.59,135.51,29.50779]
[1641835374846,98.12292398,135.59,135.51,29.50779]
[1641835375044,2.61013398,135.58,135.51,29.50779]
[1641835376251,4.0,135.57,135.51,29.50779]
[1641835376554,2.61013398,135.58,135.51,1.843]
[1641835376555,4.0,135.54,135.51,1.843]
[1641835376750,4.0,135.54,135.48,29.50879]
[1641835376952,27.66479,135.55,135.49,1.844]
[1641835377651,2.61013398,135.54,135.49,1.844]
[1641835377851,2.61013398,135.54,135.47,21.844]
[1641835378053,74.52413398,135.54,135.47,21.844]
[1641835378256,74.52413398,135.54,135.45,11.04]
[1641835378452,70.52413398,135.54,135.45,11.04]
[1641835378653,4.0,135.53,135.45,11.04]
[1641835378854,27.66479,135.52,135.45,11.04]
[1641835379256,34.27492398,135.52,135.45,11.04]
[1641835379455,4.0,135.5,135.45,11.04]
[1641835379654,34.27492398,135.52,135.45,11.04]
[1641835380254,31.66479,135.52,135.45,11.04]
[1641835380454,27.66479,135.52,135.45,11.04]
[1641835380655,4.0,135.49,135.45,0.0001]
[1641835381455,4.0,135.5,135.45,0.0001]
[1641835381655,4.0,135.48,135.45,0.0001]
[1641835381854,4.0,135.5,135.45,0.0001]
[1641835382060,4.0,135.47,135.45,0.0001]
[1641835382256,2.60174099,135.49,135.45,0.0001]
[1641835382455,6.60174099,135.49,135.45,0.0001]
[1641835382655,2.60174099,135.49,135.45,0.0001]
[1641835383056,9.90390733,135.51,135.45,0.0001]
[1641835383357,4.0,135.5,135.45,0.0001]
[1641835383760,9.90390733,135.51,135.45,0.0001]
[1641835383957,5.90390733,135.51,135.45,7.5961]
[1641835384360,4.0,135.51,135.45,7.5961]
[1641835385358,66.4587,135.52,135.45,7.5961]
[1641835385559,2.34411612,135.53,135.45,9.4411]
[1641835386159,2.60213563,135.52,135.46,7.37925691]
[1641835386761,3.18019568,135.48,135.47,21.845]
[1641835386958,2.60213563,135.52,135.47,49.50979]
[1641835387358,2.60213563,135.52,135.47,29.50979]
[1641835387559,2.60213563,135.54,135.5,20.0]
[1641835387759,2.60213563,135.54,135.51,1.844]
[1641835388159,2.60213563,135.54,135.47,37.56983889]
[1641835388160,2.60213563,135.54,135.47,20.0]
[1641835388359,7.38225306,135.56,135.48,1.844]
[1641835388561,4.0,135.49,135.41,20.0]
[1641835388760,4.0,135.48,135.42,1.844]
[1641835388959,27.66479,135.5,135.42,29.50879]
[1641835389159,103.01439,135.5,135.42,36.89049813]
[1641835389360,4.0,135.49,135.42,36.89049813]
[1641835389960,4.0,135.49,135.42,9.22570813]
[1641835390160,4.0,135.47,135.42,9.22570813]
[1641835390360,4.0,135.47,135.42,7.38170813]
[1641835390560,4.0,135.49,135.42,7.38170813]
[1641835390761,4.0,135.48,135.42,7.38170813]
[1641835390960,4.0,135.47,135.42,7.38170813]
[1641835391961,4.0,135.49,135.42,7.38170813]
[1641835392261,171.02239,135.5,135.43,1.845]
[1641835392461,171.02239,135.5,135.42,7.38170813]
[1641835392663,167.02239,135.5,135.42,7.38170813]
[1641835392863,167.02239,135.5,135.42,8.13e-06]
[1641835392864,4.0,135.45,135.42,8.13e-06]
[1641835393063,27.66479,135.43,135.37,27.66479]
[1641835393461,4.0,135.4,135.37,27.66479]
[1641835393663,31.66479,135.43,135.37,27.66479]
[1641835393861,27.66479,135.43,135.37,47.66479]
[1641835394062,72.5324,135.44,135.38,1.846]
[1641835394561,76.5324,135.44,135.38,1.846]
[1641835394762,4.0,135.43,135.38,1.846]
[1641835394964,4.0,135.43,135.37,27.66479]
[1641835395865,76.5324,135.44,135.37,27.66479]
[1641835396166,76.5324,135.44,135.36,1.846]
[1641835396364,76.5324,135.44,135.43,4.18324781]
[1641835396563,4.0,135.44,135.43,4.781e-05]
[1641835397165,27.66479,135.45,135.43,4.781e-05]
[1641835397464,2.22541226,135.46,135.43,4.781e-05]
[1641835399970,68.1913,135.48,135.43,4.781e-05]
[1641835400372,68.1913,135.48,135.41,29.50979]
[1641835400575,2.2262293,135.43,135.41,29.50979]
[1641835401176,2.2262293,135.43,135.4,21.846]
[1641835401572,2.2262293,135.43,135.4,20.0]
[1641835401778,2.2262293,135.43,135.38,1.846]
[1641835402475,6.2262293,135.43,135.38,1.846]
[1641835402679,4.0,135.42,135.37,4.18441452]
[1641835402974,6.2262293,135.43,135.37,4.18441452]
[1641835404582,4.0,135.43,135.42,4.1837245]
[1641835404780,4.0,135.43,135.33,49.51079]
[1641835404982,4.0,135.41,135.33,17.39740102]
[1641835405184,4.0,135.4,135.33,15.55140102]
[1641835405583,31.66479,135.41,135.33,15.55140102]
[1641835406185,27.66479,135.41,135.33,2.59101332]
[1641835406485,4.0,135.4,135.33,2.59101332]
[1641835406685,31.66479,135.41,135.33,2.59101332]
[1641835406987,27.66479,135.41,135.33,2.59101332]
[1641835407184,27.66479,135.41,135.34,27.66479]
[1641835407383,27.66479,135.41,135.34,29.51079]
[1641835407583,27.66479,135.41,135.34,1.846]
[1641835407784,31.66479,135.41,135.32,7.38661545]
[1641835408385,4.0,135.38,135.32,7.38661545]
[1641835408585,4.0,135.38,135.33,2.59238385]
[1641835408786,27.66479,135.41,135.33,2.59238385]
[1641835409087,31.66479,135.41,135.33,2.59238385]
[1641835409286,4.0,135.38,135.33,2.59238385]
[1641835409586,4.0,135.4,135.34,3.63391135]
[1641835409786,4.18545902,135.4,135.34,3.63391135]
[1641835409987,8.18545902,135.4,135.34,3.63391135]
[1641835410185,4.0,135.39,135.34,3.63391135]
[1641835410587,4.0,135.36,135.3,1.846]
[1641835410788,5.90941707,135.38,135.29,17.39840102]
[1641835410988,4.0,135.35,135.29,17.39840102]
[1641835411187,40.28779,135.35,135.27,24.78747258]
[1641835411387,4.0,135.34,135.27,22.94047258]
[1641835411586,40.28779,135.35,135.27,22.94047258]
[1641835411788,4.0,135.34,135.27,22.94047258]
[1641835412188,4.0,135.34,135.29,2.58875014]
[1641835412387,31.66479,135.35,135.29,2.58875014]
[1641835412990,31.66479,135.35,135.28,2.58875014]
[1641835413293,4.0,135.32,135.26,25.91497362]
[1641835413492,4.0,135.29,135.23,41.42896677]
[1641835413693,4.0,135.28,135.24,1.848]
[1641835413892,5.91412357,135.27,135.21,22.95885979]
[1641835414090,9.91412357,135.27,135.21,22.95885979]
[1641835414490,4.0,135.28,135.21,15.56651087]
[1641835414689,4.0,135.29,135.21,15.56651087]
[1641835414891,81.71711708,135.31,135.2,1.848]
[1641835415290,31.66479,135.29,135.2,1.848]
[1641835415490,31.66479,135.29,135.19,36.92079]
[1641835416089,27.66479,135.29,135.19,36.92079]
[1641835416291,4.0,135.28,135.19,36.92079]
[1641835416490,31.66479,135.29,135.19,36.92079]
[1641835416690,27.66479,135.29,135.19,60.92079]
[1641835416892,27.66479,135.29,135.2,7.39289543]
[1641835417191,27.66479,135.29,135.21,1.848]
[1641835417390,27.66479,135.29,135.2,1.848]
[1641835418392,31.66479,135.29,135.2,1.848]
[1641835418791,4.18843111,135.26,135.19,27.66479]
[1641835419791,4.18843111,135.26,135.19,47.66479]
[1641835419992,4.18843111,135.26,135.2,1.848]
[1641835420992,4.18843111,135.26,135.22,24.0]
[1641835421192,3.111e-05,135.26,135.25,27.66479]
[1641835421393,27.66479,135.33,135.25,49.51279]
[1641835421792,27.66479,135.33,135.25,29.51279]
[1641835422294,4.0,135.32,135.25,29.51279]
[1641835422492,4.0,135.32,135.25,27.66479]
[1641835422693,4.0,135.32,135.22,1.847]
[1641835422893,4.0,135.31,135.21,1.848]
[1641835423093,4.0,135.31,135.2,1.848]
[1641835423293,4.18922504,135.25,135.21,27.66479]
[1641835425196,4.18922504,135.25,135.2,1.848]
[1641835427200,27.66479,135.29,135.21,20.0]
[1641835427698,27.66479,135.29,135.2,1.848]
[1641835427898,4.0,135.28,135.2,1.848]
[1641835428100,4.0,135.27,135.2,1.848]
[1641835428298,66.942,135.28,135.19,64.57102202]
[1641835428702,70.942,135.28,135.19,64.57102202]
[1641835428901,66.942,135.28,135.19,64.57102202]
[1641835429103,4.0,135.27,135.22,2.96656876]
[1641835429500,4.18889016,135.24,135.22,2.96656876]
[1641835430303,10.10433767,135.24,135.22,2.96656876]
[1641835430504,14.10433767,135.24,135.15,1.848]
[1641835430705,4.0,135.23,135.14,15.56651087]
[1641835430905,4.0,135.21,135.14,15.56651087]
[1641835431307,31.66479,135.21,135.12,29.58361068]
[1641835432206,4.0,135.2,135.12,29.58361068]
[1641835432405,31.66479,135.21,135.12,29.58361068]
[1641835433406,31.66479,135.21,135.2,3.80520056]
[1641835433609,31.66479,135.21,135.12,29.58361068]
[1641835434410,27.66479,135.21,135.12,29.58361068]
[1641835434608,31.66479,135.21,135.12,29.58361068]
[1641835435914,27.66479,135.21,135.12,29.58361068]
[1641835436312,4.18935802,135.23,135.15,7.39590267]
[1641835436513,9.9143124,135.27,135.17,24.0]
[1641835436514,5.9143124,135.27,135.17,24.0]
[1641835436714,15.55140102,135.31,135.22,11.39152931]
[1641835437315,15.55140102,135.31,135.22,7.39152931]
[1641835437516,15.55140102,135.31,135.23,27.66479]
[1641835437716,5.91238587,135.31,135.23,27.66479]
[1641835437919,14.27025198,135.29,135.23,27.66479]
[1641835438117,18.27025198,135.29,135.19,1.848]
[1641835438317,4.0,135.27,135.18,15.56651087]
[1641835438517,4.19075276,135.2,135.18,15.56651087]
[1641835438718,4.19075276,135.2,135.16,1.848]
[1641835439418,4.19075276,135.2,135.15,29.51379]
[1641835439617,4.19075276,135.2,135.15,53.60111776]
[1641835440418,4.19075276,135.2,135.15,43.23130087]
[1641835440617,4.19075276,135.2,135.15,27.66479]
[1641835441519,4.0,135.18,135.15,27.66479]
[1641835442524,4.0,135.16,135.13,2.74887757]
[1641835442722,5.91900456,135.16,135.13,2.74887757]
[1641835442926,5.91900456,135.16,135.11,15.56651087]
[1641835443124,101.01219,135.21,135.11,15.56651087]
[1641835443330,4.0,135.2,135.19,3.33450743]
[1641835443527,4.0,135.2,135.1,15.56651087]
[1641835443729,4.0,135.2,135.11,7.39809129]
[1641835443730,5.91759554,135.2,135.11,7.39809129]
[1641835444228,5.91759554,135.2,135.12,15.56651087]
[1641835444229,4.19085616,135.19,135.12,15.56651087]
[1641835445433,27.66479,135.17,135.12,15.56651087]
[1641835446430,27.66479,135.17,135.09,65.07649094]
[1641835446431,27.66479,135.17,135.1,15.56651087]
[1641835447235,27.66479,135.17,135.12,3.03281965]
[1641835448834,33.58349284,135.17,135.12,3.03281965]
[1641835449035,37.58349284,135.17,135.12,3.03281965]
[1641835449236,5.91957328,135.15,135.12,1.965e-05]
[1641835449634,61.24840905,135.17,135.12,1.965e-05]
[1641835450537,65.24840905,135.17,135.12,1.965e-05]
[1641835451135,72.9639,135.16,135.13,3.03288706]
[1641835451440,4.0,135.16,135.13,3.03288706]
[1641835451841,4.0,135.15,135.13,3.03288706]
[1641835452040,4.0,135.16,135.13,3.03288706]
[1641835452239,4.19211214,135.16,135.13,3.03288706]
[1641835454443,5.91943058,135.15,135.13,3.03288706]
[1641835455042,5.91943058,135.15,135.09,15.56651087]
[1641835455243,5.91943058,135.15,135.07,43.23130087]
[1641835456244,5.91943058,135.15,135.08,2.59422735]
[1641835456444,10.11125546,135.15,135.14,2.26266391]
[1641835457244,10.11136294,135.15,135.14,2.26266391]
[1641835457447,10.11136294,135.15,135.07,15.56651087]
[1641835458149,9.92003312,135.14,135.07,15.56651087]
[1641835458348,4.0,135.12,135.07,15.56651087]
[1641835458548,5.92134882,135.11,135.07,18.16174832]
[1641835459048,7.10413576,135.14,135.07,18.16174832]
[1641835459652,27.66479,135.12,135.05,1.85]
[1641835459948,27.66479,135.12,135.04,1.85]
[1641835460349,27.66479,135.12,135.06,2.59523745]
[1641835460949,4.19242943,135.15,135.06,2.59523745]
[1641835461151,4.19242943,135.15,135.07,5.85]
[1641835461352,4.19242943,135.15,135.07,12.987]
[1641835461751,4.19242943,135.15,135.08,27.66479]
[1641835461949,4.19242943,135.15,135.09,1.85]
[1641835462150,15.13150505,135.14,135.09,1.85]
[1641835462350,15.13150505,135.14,135.09,2.59523745]
[1641835462551,21.0514678,135.14,135.09,2.59523745]
[1641835463353,21.0514678,135.14,135.08,4.23063678]
[1641835463652,27.66479,135.12,135.08,4.23063678]
[1641835464052,27.66479,135.12,135.08,1.63539933]
[1641835466955,27.66479,135.12,135.07,7.137]
[1641835467155,31.66479,135.12,135.07,7.137]
[1641835467354,31.66479,135.12,135.09,1.1823701]
[1641835467556,27.66479,135.12,135.09,1.1823701]
[1641835468657,31.66479,135.12,135.09,1.1823701]
[1641835468857,37.58549426,135.12,135.09,1.1823701]
[1641835469057,4.19318336,135.11,135.09,1.1823701]
[1641835469958,8.19318336,135.11,135.09,1.1823701]
[1641835471764,8.19318336,135.11,135.07,7.137]
[1641835472167,14.11464448,135.11,135.07,7.137]
[1641835472366,14.11464448,135.11,135.04,15.56651087]
[1641835472767,14.11464448,135.11,135.1,1.1825342]
[1641835473168,14.11494427,135.11,135.1,1.1825342]
[1641835473368,14.11494427,135.11,135.04,15.56651087]
[1641835474170,10.11494427,135.11,135.04,15.56651087]
[1641835474371,10.11494427,135.11,135.03,28.55203699]
[1641835475173,4.19348315,135.11,135.05,24.0]
[1641835475372,4.19348315,135.11,135.06,1.85]
[1641835475975,4.19348315,135.11,135.07,2.59833606]
[1641835476976,27.66479,135.12,135.07,2.59833606]
[1641835477177,27.66479,135.12,135.05,18.16484693]
[1641835477577,15.55140102,135.17,135.11,7.39672325]
[1641835477779,15.55140102,135.19,135.16,55.32958]
[1641835477978,41.42896677,135.22,135.16,55.32958]
[1641835478177,24.98036779,135.22,135.19,7.39344202]
[1641835478979,62.31051741,135.26,135.17,9.24353544]
[1641835479277,5.91346886,135.29,135.17,15.8418715]
[1641835479478,5.91346886,135.29,135.19,24.0]
[1641835479679,27.66479,135.31,135.2,4.0]
[1641835479879,27.66479,135.31,135.21,39.05713892]
[1641835480080,27.66479,135.31,135.22,25.848]
[1641835480581,2.61147121,135.28,135.22,25.848]
[1641835480782,2.61147121,135.28,135.22,1.848]
[1641835481385,74.66577121,135.3,135.22,1.848]
[1641835481583,74.66577121,135.3,135.21,27.66479]
[1641835481882,2.61147121,135.3,135.21,27.66479]
[1641835482484,4.0,135.28,135.19,29.24144202]
[1641835482783,4.0,135.28,135.19,1.848]
[1641835482985,4.0,135.28,135.17,9.24253544]
[1641835483186,4.0,135.27,135.17,9.24253544]
[1641835483387,2.61147121,135.27,135.17,7.39453544]
[1641835483588,6.61147121,135.27,135.18,0.9308254]
[1641835483991,27.66479,135.24,135.18,0.9308254]
[1641835485790,31.66479,135.24,135.18,0.9308254]
[1641835486692,4.0,135.23,135.18,0.9308254]
[1641835487090,4.0,135.21,135.18,0.9308254]
[1641835487690,4.0,135.2,135.19,8.53e-05]
[1641835487890,31.66479,135.2,135.1,21.849]
[1641835488091,27.66479,135.2,135.1,21.849]
[1641835488893,27.66479,135.2,135.11,7.39781764]
[1641835489092,27.66479,135.2,135.12,5.849]
[1641835489290,27.66479,135.2,135.12,1.849]
[1641835489893,31.66479,135.2,135.12,1.849]
[1641835490092,31.66479,135.2,135.13,27.66479]
[1641835490492,31.66479,135.2,135.11,7.39781764]
[1641835491294,37.58204592,135.2,135.11,7.39781764]
[1641835491895,33.58204592,135.2,135.1,21.849]
[1641835492095,4.0,135.19,135.1,21.849]
[1641835492695,43.49948052,135.2,135.1,21.849]
[1641835492897,43.49948052,135.2,135.11,0.83824415]
[1641835493796,4.19168118,135.19,135.11,0.83824415]
[1641835493998,4.19168118,135.19,135.14,35.0612397]
[1641835494201,18.6901916,135.23,135.14,39.0612397]
[1641835494399,5.91564674,135.24,135.15,1.849]
[1641835494997,5.91564674,135.24,135.15,4.43866711]
[1641835495798,5.91564674,135.24,135.15,1.849]
[1641835495999,27.66479,135.22,135.15,1.849]
[1641835496197,27.66479,135.22,135.14,27.66479]
[1641835496801,33.58149168,135.22,135.14,27.66479]
[1641835497202,5.91670168,135.22,135.15,7.39590267]
[1641835497401,7.0984035,135.25,135.16,1.849]
[1641835497600,4.19138024,135.19,135.16,1.849]
[1641835498200,4.19138024,135.19,135.18,27.66479]
[1641835499203,8.024e-05,135.19,135.18,27.66479]
[1641835499404,7.0984035,135.25,135.18,27.66479]
[1641835499602,15.52257293,135.23,135.18,27.66479]
[1641835503705,4.0,135.24,135.17,1.849]
[1641835504007,4.0,135.19,135.16,1.57410437]
[1641835504205,27.66479,135.18,135.11,41.54741842]
[1641835504710,31.66479,135.18,135.09,1.849]
[1641835504906,31.66479,135.18,135.08,69.21220842]
[1641835505706,4.0,135.17,135.08,69.21220842]
[1641835505906,5.91855791,135.17,135.08,69.21220842]
[1641835506608,5.91855791,135.17,135.09,2.59852936]
[1641835507008,27.66479,135.18,135.09,2.59852936]
[1641835507210,27.66479,135.18,135.1,1.85]
[1641835508609,27.66479,135.18,135.11,2.59852936]
[1641835508810,4.19236479,135.17,135.11,2.59852936]
[1641835509512,8.19236479,135.17,135.1,1.85]
[1641835509711,8.19236479,135.17,135.08,27.66479]
[1641835510311,4.19236479,135.17,135.09,2.5984416]
[1641835512315,4.19236479,135.17,135.09,9.2974416]
[1641835512714,33.58293567,135.18,135.1,1.85]
[1641835512916,37.58283226,135.18,135.09,2.5984416]
[1641835513116,4.0,135.17,135.09,2.5984416]
[1641835513317,4.1930706,135.16,135.08,29.51379]
[1641835513718,8.1930706,135.16,135.08,29.51379]
[1641835514718,4.1930706,135.16,135.09,2.59852085]
[1641835517223,8.1930706,135.16,135.09,2.59852085]
[1641835517422,4.0,135.15,135.09,2.59852085]
[1641835517623,9.92014606,135.14,135.09,2.59852085]
[1641835518022,4.0,135.13,135.09,2.59852085]
[1641835518225,27.66479,135.12,135.09,2.59852085]
[1641835518522,27.66479,135.12,135.07,2.59852085]
[1641835519022,33.58493606,135.14,135.07,2.59852085]
[1641835519824,9.92086587,135.12,135.07,2.59852085]
[1641835520224,9.92086587,135.12,135.06,27.66479]
[1641835520425,9.92086587,135.12,135.1,2.16783743]
[1641835520927,9.92086587,135.12,135.1,3.743e-05]
[1641835521728,4.0,135.11,135.1,3.743e-05]
[1641835522328,31.66479,135.11,135.1,3.743e-05]
[1641835523432,27.66479,135.11,135.1,3.743e-05]
[1641835523730,5.92086587,135.12,135.1,3.743e-05]
[1641835524129,4.19359073,135.13,135.1,3.743e-05]
[1641835524532,4.19359073,135.13,135.07,2.16901009]